fUST/lending_fUST_20240207
["ID","MTS","AMOUNT","RATE_DAILY","PERIOD"]
[313393075,1707275438603,-310.30454966,0.00024881,2]
[313393076,1707275438612,-500.0,0.00024881,2]
[313393077,1707275438621,-500.0,0.00024881,2]
[313393078,1707275438630,-500.0,0.00024881,2]
[313393079,1707275438639,-500.0,0.00024881,2]
[313393080,1707275438648,-500.0,0.00024881,2]
[313393081,1707275438657,-546.10613001,0.00024881,2]
[313393082,1707275438665,-500.0,0.00024881,2]
[313393083,1707275438674,-215.401743,0.00024881,2]
[313393084,1707275438683,-500.0,0.00024881,2]
[313393085,1707275438693,-500.0,0.00024881,2]
[313393086,1707275438702,-500.0,0.00024881,2]
[313393087,1707275438711,-500.0,0.00024881,2]
[313393088,1707275438720,-500.0,0.00024881,2]
[313393089,1707275438728,-500.0,0.00024881,2]
[313393090,1707275438738,-500.0,0.00024881,2]
[313393091,1707275438747,-500.0,0.00024881,2]
[313393092,1707275438756,-500.0,0.00024881,2]
[313393093,1707275438765,-500.0,0.00024881,2]
[313393094,1707275438774,-500.0,0.00024881,2]
[313393095,1707275438782,-213.09720887,0.00024881,2]
[313393096,1707275438792,-500.0,0.00024881,2]
[313393097,1707275438801,-500.0,0.00024881,2]
[313393098,1707275438810,-500.0,0.00024881,2]
[313393099,1707275438819,-2086.00309672,0.00024882,2]
[313393100,1707275438828,-1436.65915247,0.00024882,2]
[313393101,1707275438837,-23857.88928004,0.00024882,2]
[313393102,1707275438846,-313.17501102,0.00024882,6]
[313393103,1707275438855,-1438.30188026,0.00024882,2]
[313393104,1707275438864,-3771.2084081,0.00024882,2]
[313393105,1707275438873,-278.913726,0.00024882,2]
[313393106,1707275438882,-278.913726,0.00024882,2]
[313393107,1707275438891,-278.913726,0.00024882,2]
[313393108,1707275438900,-278.913726,0.00024882,2]
[313393109,1707275438910,-278.913726,0.00024882,2]
[313393110,1707275438919,-278.913716,0.00024882,2]
[313393111,1707275438928,-3105.83310669,0.00024888,2]
[313393112,1707275438937,-4233.74521654,0.00024906,2]
[313393113,1707275438946,-1000.0,0.00025,2]
[313393114,1707275438955,-1000.0,0.00025,2]
[313393115,1707275438964,-1000.0,0.00025,2]
[313393116,1707275438973,-1000.0,0.00025,2]
[313393117,1707275438983,-1000.0,0.00025,2]
[313393118,1707275438993,-1000.0,0.00025,2]
[313393119,1707275439002,-1000.0,0.00025,2]
[313393120,1707275439011,-1000.0,0.00025,2]
[313393121,1707275439020,-1000.0,0.00025,2]
[313393122,1707275439029,-1000.0,0.00025,2]
[313393123,1707275439039,-1000.0,0.00025,2]
[313393124,1707275439048,-1000.0,0.00025,2]
[313393125,1707275439058,-1000.0,0.00025,2]
[313393126,1707275439067,-1000.0,0.00025,2]
[313393127,1707275439076,-61.03064334,0.00025,2]
[313393128,1707275439089,-938.96935666,0.00025,2]
[313393129,1707275439098,-1000.0,0.00025,2]
[313393130,1707275439107,-620.39427013,0.00025015,2]
[313393131,1707275439117,-399.95357357,0.00025077,2]
[313393132,1707275439126,-1045.78984851,0.00025105,2]
[313393133,1707275439135,-151.0,0.0002545,2]
[313393134,1707275439144,-10114.171352,0.00025489,2]
[313393135,1707275439154,-7000.0,0.000255,4]
[313393136,1707275439163,-155.9332609,0.00026,7]
[313393137,1707275439172,-1276.3381256,0.000267,2]
[313393138,1707275439181,-389.75817435,0.00026796,2]
[313393139,1707275439190,-493.89364677,0.00026796,2]
[313393140,1707275439199,-431.48534482,0.00026796,2]
[313393141,1707275439209,-1275.38863026,0.00026796,2]
[313393142,1707275439220,-333.94348257,0.00026797,2]
[313393143,1707275439232,-4020.75417726,0.00026797,2]
[313393144,1707275439242,-194.1105496,0.00026798,2]
[313393145,1707275439252,-155.22301569,0.00026798,2]
[313393146,1707275439263,-155.61005332,0.00026798,2]
[313393147,1707275439274,-156.43248317,0.00026798,2]
[313393148,1707275439284,-20690.81414925,0.00026798,2]
[313393149,1707275439293,-155.48741641,0.00026798,2]
[313393150,1707275439305,-155.26139966,0.00026798,2]
[313393151,1707275439315,-175.58593534,0.00026798,2]
[313393152,1707275439325,-156.45539753,0.00026798,2]
[313393153,1707275439336,-156.38567067,0.00026798,2]
[313393154,1707275439345,-155.31795981,0.00026798,2]
[313393155,1707275439355,-5850.72782731,0.00026798,2]
[313393156,1707275439364,-682.89868337,0.00026798,2]
[313393157,1707275439373,-1597.47691851,0.00026798,2]
[313393158,1707275439382,-7663.22335647,0.00026798,2]
[313393159,1707275439391,-353.24741977,0.00026799,2]
[313393160,1707275439400,-218629.36926757,0.000268,2]
[313393161,1707275439410,-584.5044265,0.0002684,2]
[313393162,1707275439420,-188.93647354,0.0002684,2]
[313393163,1707275439429,-500.0,0.0002684,2]
[313393164,1707275439439,-577.6176946,0.0002684,2]
[313393165,1707275439449,-320.266778,0.0002684,2]
[313393166,1707275439460,-500.0,0.0002684,2]
[313393167,1707275439470,-291.79674011,0.0002684,2]
[313393168,1707275439478,-500.0,0.0002684,2]
[313393169,1707275439489,-1045.78984851,0.00026841,2]
[313393170,1707275439499,-151.0,0.00026941,2]
[313393171,1707275439508,-503.33303702,0.00027397,3]
[313393172,1707275439517,-500.0,0.00027397,3]
[313393173,1707275439526,-512.60921519,0.00027397,3]
[313393174,1707275439535,-499.72476762,0.00027397,3]
[313393175,1707275439544,-500.0,0.00027397,3]
[313393176,1707275439554,-500.0,0.00027397,3]
[313393177,1707275439563,-510.82127226,0.00027397,3]
[313393178,1707275439572,-500.0,0.00027397,3]
[313393179,1707275439581,-395.64374963,0.00027397,3]
[313393180,1707275439590,-500.0,0.00027397,3]
[313393181,1707275439599,-644.38,0.00027397,2]
[313393182,1707275439608,-502.96233577,0.00027397,3]
[313393183,1707275439617,-572.65677829,0.00027397,3]
[313393184,1707275439626,-503.80598074,0.00027397,3]
[313393185,1707275439635,-405.76278402,0.00027397,3]
[313393186,1707275439645,-507.19936527,0.00027397,3]
[313393187,1707275439654,-513.9843867,0.00027397,3]
[313393188,1707275439664,-505.25318289,0.00027397,3]
[313393189,1707275439674,-502.07103516,0.00027397,3]
[313393190,1707275439683,-503.78705678,0.00027397,3]
[313393191,1707275439692,-504.9905433,0.00027397,3]
[313393192,1707275439701,-500.0,0.00027397,3]
[313393193,1707275439710,-503.39960509,0.00027397,3]
[313393194,1707275439720,-503.03783675,0.00027397,3]
[313393195,1707275439729,-500.0,0.00027397,3]
[313393196,1707275439739,-501.97845628,0.00027397,3]
[313393197,1707275439750,-503.826263,0.00027397,3]
[313393198,1707275439759,-501.35806295,0.00027397,3]
[313393199,1707275439768,-226.57031501,0.00027397,3]
[313393200,1707275439778,-500.0,0.00027397,3]
[313393201,1707275439787,-182.95427133,0.00027397,3]
[313393202,1707275439797,-500.0,0.00027397,3]
[313393203,1707275439806,-500.89318749,0.00027397,3]
[313393204,1707275439815,-503.41489345,0.00027397,3]
[313393205,1707275439824,-500.0,0.00027397,3]
[313393206,1707275439834,-500.0,0.00027397,3]
[313393207,1707275439843,-500.0,0.00027397,3]
[313393208,1707275439852,-500.0,0.00027397,3]
[313393209,1707275439860,-500.0,0.00027397,3]
[313393210,1707275439870,-500.0,0.00027397,3]
[313393211,1707275439879,-500.0,0.00027397,3]
[313393212,1707275439888,-500.0,0.00027397,3]
[313393213,1707275439897,-500.0,0.00027397,3]
[313393214,1707275439908,-500.0,0.00027397,3]
[313393215,1707275439917,-500.0,0.00027397,3]
[313393216,1707275439926,-516.24171578,0.00027397,3]
[313393217,1707275439936,-628.49163732,0.00027397,3]
[313393218,1707275439946,-192.94426206,0.00027397,3]
[313393219,1707275439955,-502.08124381,0.00027397,3]
[313393220,1707275439965,-540.11940177,0.00027397,3]
[313393221,1707275439976,-503.42219056,0.00027397,3]
[313393222,1707275439988,-500.0,0.00027397,2]
[313393223,1707275439997,-500.0,0.00027397,3]
[313393224,1707275440007,-500.0,0.00027397,3]
[313393225,1707275440016,-500.0,0.00027397,3]
[313393226,1707275440029,-512.25643763,0.00027397,3]
[313393227,1707275440038,-500.0,0.00027397,3]
[313393228,1707275440047,-508.60555592,0.00027397,3]
[313393229,1707275440056,-500.0,0.00027397,3]
[313393230,1707275440065,-504.7129826,0.00027397,3]
[313393231,1707275440074,-507.62259992,0.00027397,3]
[313393232,1707275440083,-504.61111365,0.00027397,3]
[313393233,1707275440092,-503.59068147,0.00027397,3]
[313393234,1707275440101,-505.73821484,0.00027397,3]
[313393235,1707275440110,-500.0,0.00027397,3]
[313393236,1707275440119,-506.08228643,0.00027397,3]
[313393237,1707275440128,-500.0,0.00027397,3]
[313393238,1707275440137,-505.70787629,0.00027397,3]
[313393239,1707275440146,-756.45,0.00027397,3]
[313393240,1707275440155,-573.08,0.00027397,3]
[313393241,1707275440164,-504.34599032,0.00027397,3]
[313393242,1707275440173,-506.32535317,0.00027397,3]
[313393243,1707275440182,-503.6447498,0.00027397,3]
[313393244,1707275440192,-503.84955178,0.00027397,3]
[313393245,1707275440201,-521.14669098,0.00027397,3]
[313393246,1707275440210,-506.29585049,0.00027397,3]
[313393247,1707275440219,-500.0,0.00027397,3]
[313393248,1707275440232,-500.0,0.00027397,3]
[313393249,1707275440240,-500.0,0.00027397,3]
[313393250,1707275440249,-250.12034428,0.00027397,2]
[313393251,1707275440258,-500.0,0.00027397,3]
[313393252,1707275440269,-771.98,0.00027397,3]
[313393253,1707275440278,-505.54421954,0.00027397,3]
[313393254,1707275440287,-500.0,0.00027397,3]
[313393255,1707275440296,-528.06810444,0.00027397,3]
[313393256,1707275440307,-400.04095596,0.00027397,3]
[313393257,1707275440318,-500.0,0.00027397,3]
[313393258,1707275440327,-500.0,0.00027397,3]
[313393259,1707275440337,-500.0,0.00027397,3]
[313393260,1707275440347,-535.07979836,0.00027397,3]
[313393261,1707275440356,-495.71537743,0.00027397,3]
[313393262,1707275440366,-508.88250451,0.00027397,3]
[313393263,1707275440375,-586.03,0.00027397,3]
[313393264,1707275440384,-520.29519494,0.00027397,3]
[313393265,1707275440393,-2661.1,0.00027397,3]
[313393266,1707275440403,-508.92221967,0.00027397,3]
[313393267,1707275440484,-500.0,0.00027397,3]
[313393268,1707275440493,-1884.25,0.00027397,3]
[313393269,1707275440502,-506.11605053,0.00027397,3]
[313393270,1707275440511,-799.04,0.00027397,3]
[313393271,1707275440520,-698.78,0.00027397,3]
[313393272,1707275440529,-345.50602686,0.00027397,3]
[313393273,1707275440538,-542.25,0.00027397,3]
[313393274,1707275440547,-506.72959948,0.00027397,3]
[313393275,1707275440556,-500.0,0.00027397,3]
[313393276,1707275440565,-513.77622928,0.00027397,3]
[313393277,1707275440574,-549.47697621,0.00027397,3]
[313393278,1707275440583,-674.56,0.00027397,3]
[313393279,1707275440592,-529.66751327,0.00027397,3]
[313393280,1707275440602,-915.68,0.00027397,3]
[313393281,1707275440612,-505.76029562,0.00027397,3]
[313393282,1707275440622,-1313.91,0.00027397,3]
[313393283,1707275440631,-1000.57,0.00027397,3]
[313393284,1707275440641,-500.0,0.00027397,3]
[313393285,1707275440651,-4817.58,0.00027397,3]
[313393286,1707275440662,-599.27,0.00027397,3]
[313393287,1707275440672,-505.44343121,0.00027397,2]
[313393288,1707275440682,-507.3807696,0.00027397,3]
[313393289,1707275440692,-1065.98,0.00027397,3]
[313393290,1707275440702,-500.0,0.00027397,3]
[313393291,1707275440712,-327.49691156,0.00027397,3]
[313393292,1707275440722,-500.0,0.00027397,3]
[313393293,1707275440731,-500.0,0.00027397,3]
[313393294,1707275440744,-5474.28,0.00027397,3]
[313393295,1707275440754,-4539.74,0.00027397,3]
[313393296,1707275440768,-163.68514928,0.00027397,3]
[313393297,1707275440778,-512.03253237,0.00027397,3]
[313393298,1707275440788,-545.04,0.00027397,3]
[313393299,1707275440798,-500.0,0.00027397,3]
[313393300,1707275440809,-500.0,0.00027397,3]
[313393301,1707275440818,-2350.04,0.00027397,3]
[313393302,1707275440829,-500.0,0.00027397,3]
[313393303,1707275440839,-506.92693779,0.00027397,3]
[313393304,1707275440849,-1263.93,0.00027397,3]
[313393305,1707275440859,-503.12839981,0.00027397,3]
[313393306,1707275440868,-2403.1,0.00027397,3]
[313393307,1707275440878,-500.0,0.00027397,3]
[313393308,1707275440887,-740.11,0.00027397,3]
[313393310,1707275440897,-7268.02,0.00027397,3]
[313393311,1707275440906,-502.67397865,0.00027397,3]
[313393312,1707275440915,-500.0,0.00027397,2]
[313393313,1707275440925,-1330.18,0.00027397,3]
[313393314,1707275440934,-395.45656042,0.00027397,3]
[313393315,1707275440943,-512.94,0.00027397,3]
[313393316,1707275440953,-1717.89,0.00027397,3]
[313393317,1707275440962,-11378.66,0.00027397,3]
[313393318,1707275440971,-402.14767479,0.00027397,2]
[313393319,1707275440981,-11289.65084746,0.00027471,7]
[313393320,1707275440994,-228.7731194,0.000275,2]
[313393321,1707275441003,-765.20485942,0.00027671,2]
[313393322,1707275441012,-3250.30762809,0.00027671,2]
[313393323,1707275441021,-300.0,0.00027671,2]
[313393324,1707275441031,-1827.5155846,0.00027671,2]
[313393325,1707275441040,-500.0,0.00027671,3]
[313393326,1707275441050,-500.0,0.00027671,3]
[313393327,1707275441059,-500.0,0.00027671,3]
[313393328,1707275441069,-506.02147915,0.00027671,3]
[313393329,1707275441078,-500.0,0.00027671,3]
[313393330,1707275441088,-644.38,0.00027671,2]
[313393331,1707275441097,-617.63906805,0.00027671,3]
[313393332,1707275441106,-553.4881113,0.00027671,3]
[313393333,1707275441115,-520.17058693,0.00027671,3]
[313393334,1707275441124,-522.91166655,0.00027671,3]
[313393335,1707275441133,-640.14375625,0.00027671,2]
[313393336,1707275441142,-533.40980891,0.00027671,3]
[313393337,1707275441152,-505.71070768,0.00027671,3]
[313393338,1707275441161,-500.0,0.00027671,3]
[313393339,1707275441170,-500.0,0.00027671,3]
[313393340,1707275441181,-509.62874299,0.00027671,3]
[313393341,1707275441190,-357.8739157,0.00027671,3]
[313393342,1707275441199,-523.63356257,0.00027671,3]
[313393343,1707275441208,-756.45,0.00027671,3]
[313393344,1707275441218,-573.08,0.00027671,3]
[313393345,1707275441235,-500.0,0.00027671,3]
[313393346,1707275441245,-500.0,0.00027671,3]
[313393347,1707275441254,-521.19887481,0.00027671,3]
[313393348,1707275441263,-500.0,0.00027671,3]
[313393349,1707275441274,-771.98,0.00027671,3]
[313393350,1707275441284,-505.84659945,0.00027671,3]
[313393351,1707275441293,-500.0,0.00027671,3]
[313393352,1707275441305,-500.0,0.00027671,3]
[313393353,1707275441315,-500.0,0.00027671,3]
[313393354,1707275441325,-586.03,0.00027671,3]
[313393355,1707275441334,-2661.1,0.00027671,3]
[313393356,1707275441344,-523.04984297,0.00027671,3]
[313393357,1707275441354,-1884.25,0.00027671,3]
[313393358,1707275441363,-799.04,0.00027671,3]
[313393359,1707275441371,-698.78,0.00027671,3]
[313393360,1707275441384,-542.25,0.00027671,3]
[313393361,1707275441393,-524.19494774,0.00027671,3]
[313393362,1707275441402,-674.56,0.00027671,3]
[313393363,1707275441412,-915.68,0.00027671,3]
[313393364,1707275441421,-1313.91,0.00027671,3]
[313393365,1707275441430,-1000.57,0.00027671,3]
[313393366,1707275441440,-511.2059221,0.00027671,3]
[313393367,1707275441449,-4817.58,0.00027671,3]
[313393368,1707275441458,-599.27,0.00027671,3]
[313393369,1707275441466,-1065.98,0.00027671,3]
[313393370,1707275441475,-500.0,0.00027671,3]
[313393371,1707275441486,-356.26084077,0.00027671,3]
[313393372,1707275441496,-500.0,0.00027671,3]
[313393373,1707275441505,-5474.28,0.00027671,3]
[313393374,1707275441514,-4539.74,0.00027671,3]
[313393375,1707275441524,-545.04,0.00027671,3]
[313393376,1707275441533,-500.0,0.00027671,3]
[313393377,1707275441542,-500.0,0.00027671,3]
[313393378,1707275441551,-2350.04,0.00027671,3]
[313393379,1707275441560,-500.0,0.00027671,3]
[313393380,1707275441569,-1263.93,0.00027671,3]
[313393381,1707275441578,-2403.1,0.00027671,3]
[313393382,1707275441587,-522.03392124,0.00027671,3]
[313393383,1707275441596,-740.11,0.00027671,3]
[313393384,1707275441604,-7268.02,0.00027671,3]
[313393385,1707275441613,-500.0,0.00027671,2]
[313393386,1707275441622,-1330.18,0.00027671,3]
[313393387,1707275441633,-512.94,0.00027671,3]
[313393388,1707275441642,-1717.89,0.00027671,3]
[313393389,1707275441651,-11378.66,0.00027671,3]
[313393390,1707275441661,-22674.40890271,0.00027771,2]
[313393391,1707275441670,-1176.14275732,0.00027781,2]
[313393392,1707275441679,-3000.0,0.000279,2]
[313393393,1707275441688,-500.0,0.00027945,3]
[313393394,1707275441697,-500.0,0.00027945,3]
[313393395,1707275441706,-500.0,0.00027945,3]
[313393396,1707275441715,-644.38,0.00027945,2]
[313393397,1707275441724,-500.0,0.00027945,3]
[313393398,1707275441735,-259.34421569,0.00027945,3]
[313393399,1707275441744,-756.45,0.00027945,3]
[313393400,1707275441753,-573.08,0.00027945,3]
[313393401,1707275441762,-520.49366064,0.00027945,3]
[313393402,1707275441771,-500.0,0.00027945,3]
[313393403,1707275441780,-500.0,0.00027945,3]
[313393404,1707275441789,-771.98,0.00027945,3]
[313393405,1707275441799,-505.95491762,0.00027945,3]
[313393406,1707275441808,-500.0,0.00027945,3]
[313393407,1707275441817,-512.00344964,0.00027945,3]
[313393408,1707275441826,-586.03,0.00027945,3]
[313393409,1707275441835,-2661.1,0.00027945,3]
[313393410,1707275441844,-1884.25,0.00027945,3]
[313393411,1707275441853,-799.04,0.00027945,3]
[313393412,1707275441862,-698.78,0.00027945,3]
[313393413,1707275441872,-542.25,0.00027945,3]
[313393414,1707275441881,-674.56,0.00027945,3]
[313393415,1707275441890,-915.68,0.00027945,3]
[313393416,1707275441900,-1313.91,0.00027945,3]
[313393417,1707275441908,-1000.57,0.00027945,3]
[313393418,1707275441917,-4817.58,0.00027945,3]
[313393419,1707275441926,-599.27,0.00027945,3]
[313393420,1707275441936,-1065.98,0.00027945,3]
[313393421,1707275441945,-500.0,0.00027945,3]
[313393422,1707275441954,-510.48812829,0.00027945,3]
[313393423,1707275441964,-4539.74,0.00027945,3]
[313393424,1707275441973,-545.04,0.00027945,3]
[313393425,1707275441982,-500.0,0.00027945,3]
[313393426,1707275441991,-500.0,0.00027945,3]
[313393427,1707275442000,-2350.04,0.00027945,3]
[313393428,1707275442010,-500.0,0.00027945,3]
[313393429,1707275442019,-1263.93,0.00027945,3]
[313393430,1707275442028,-2403.1,0.00027945,3]
[313393431,1707275442037,-740.11,0.00027945,3]
[313393432,1707275442047,-7268.02,0.00027945,3]
[313393433,1707275442056,-500.0,0.00027945,2]
[313393434,1707275442065,-1330.18,0.00027945,3]
[313393435,1707275442074,-512.94,0.00027945,3]
[313393436,1707275442084,-1717.89,0.00027945,3]
[313393437,1707275442094,-81.50987804,0.00027945,3]
[313393438,1707275442176,-271.61331872,0.00027945,3]
[313393439,1707275442188,-1472.19614219,0.00027945,3]
[313393441,1707275442428,-2755.76534806,0.00026788,3]
[313393445,1707275445799,-420.469,0.00026788,3]
[313393471,1707276633511,-155.06202481,0.00024847,4]
[313393473,1707276633523,-318.05759968,0.00024847,2]
[313393548,1707276638044,-972.60359235,0.00024847,2]
[313393550,1707276638055,-610.88831751,0.00024881,2]
[313393631,1707276641313,-4300.3,0.00024846,2]
[313393676,1707276643056,-194.82556647,0.00024846,2]
[313393678,1707276643067,-342.97716017,0.00024881,2]
[313393817,1707277840674,-155.04961588,0.0002275,4]
[313393818,1707277840683,-196.6908967,0.00022751,2]
[313393819,1707277840731,-4298.43466977,0.00022751,2]
[313393820,1707277840740,-1201.66555398,0.00022778,2]
[313393821,1707277840750,-392.04758577,0.00022781,2]
[313393822,1707277840759,-167.1744718,0.00022869,2]
[313393823,1707277840768,-246.112991,0.0002327,2]
[313393824,1707277840778,-7718.15920944,0.00024879,2]
[313393825,1707277840787,-919.09189145,0.00024881,2]
[313393826,1707277840797,-155.13091792,0.00024881,2]
[313393827,1707277840806,-313.17501102,0.00024881,6]
[313393828,1707277840815,-155.06202481,0.00024881,2]
[313393829,1707277840825,-704.78476076,0.00024881,2]
[313393830,1707277840834,-3105.83310669,0.00024892,2]
[313393831,1707277840844,-4626.30494211,0.00024898,2]
[313393832,1707277840853,-7682.06631934,0.00024898,2]
[313393833,1707277840862,-527.94956253,0.00024898,2]
[313393834,1707277840871,-3562.13737984,0.00024903,2]
[313393835,1707277840881,-181.23236617,0.00025,3]
[313393836,1707277840891,-155.42845323,0.00025,2]
[313393837,1707277840901,-6299.4069347,0.00025,2]
[313393838,1707277840910,-172.2297034,0.00025274,2]
[313393839,1707277840920,-153.0,0.00025342,2]
[313393840,1707277840931,-153.0,0.00025342,2]
[313393841,1707277840944,-153.0,0.00025342,2]
[313393842,1707277840954,-153.0,0.00025342,2]
[313393843,1707277840964,-155.8081537,0.00025841,2]
[313393844,1707277840975,-255.64,0.00025864,2]
[313393845,1707277840986,-154.5221408,0.00026027,2]
[313393846,1707277840995,-308.9126686,0.00026027,2]
[313393847,1707277841004,-153.0,0.00026027,2]
[313393848,1707277841014,-153.0,0.00026027,2]
[313393849,1707277841025,-153.0,0.00026027,2]
[313393850,1707277841035,-199.9099361,0.00026027,2]
[313393851,1707277841044,-153.0,0.00026027,2]
[313393852,1707277841053,-306.0,0.00026027,2]
[313393853,1707277841063,-199.9099361,0.00026027,2]
[313393854,1707277841072,-153.0,0.00026027,2]
[313393855,1707277841082,-153.0,0.00026027,2]
[313393856,1707277841091,-153.0,0.00026027,2]
[313393857,1707277841100,-199.9099361,0.00026027,2]
[313393858,1707277841109,-156.2050049,0.00026027,2]
[313393859,1707277841119,-153.0,0.00026301,2]
[313393860,1707277841128,-153.0,0.00026301,2]
[313393861,1707277841138,-2755.47722378,0.0002653,2]
[313393862,1707277841147,-153.0,0.00026849,2]
[313393863,1707277841157,-153.0,0.00026849,2]
[313393864,1707277841166,-153.0,0.00026849,2]
[313393865,1707277841176,-155.62864101,0.00027258,2]
[313393866,1707277841186,-153.0,0.0002726,2]
[313393867,1707277841195,-153.0,0.0002726,2]
[313393868,1707277841204,-153.0,0.0002726,2]
[313393869,1707277841213,-153.0,0.0002726,2]
[313393870,1707277841222,-153.0,0.0002726,2]
[313393871,1707277841231,-153.0,0.0002726,2]
[313393872,1707277841241,-218.1708727,0.0002726,2]
[313393873,1707277841250,-200.0,0.00027366,15]
[313393874,1707277841259,-7268.67,0.00027385,3]
[313393875,1707277841269,-6057.23,0.00027385,3]
[313393876,1707277841278,-8722.41,0.00027387,3]
[313393877,1707277841287,-155.4053311,0.00027395,2]
[313393878,1707277841298,-867.23322441,0.00027395,2]
[313393879,1707277841307,-383.43926243,0.00027395,2]
[313393880,1707277841316,-550.34692866,0.00027395,2]
[313393881,1707277841326,-288.98598852,0.00027395,2]
[313393882,1707277841335,-325.58322958,0.00027395,2]
[313393883,1707277841346,-4037.43211716,0.00027395,2]
[313393884,1707277841355,-297.72607936,0.00027395,2]
[313393885,1707277841366,-256.31305784,0.00027395,2]
[313393886,1707277841375,-689.00818768,0.00027395,2]
[313393887,1707277841386,-155.92465376,0.00027395,2]
[313393888,1707277841395,-155.625586,0.00027395,2]
[313393889,1707277841405,-425.40201231,0.00027395,2]
[313393890,1707277841414,-155.72451664,0.00027395,2]
[313393891,1707277841424,-683.74589582,0.00027395,2]
[313393892,1707277841435,-3434.97161703,0.00027395,2]
[313393893,1707277841444,-590.47026682,0.00027395,2]
[313393894,1707277841453,-336.64688856,0.00027395,2]
[313393895,1707277841463,-368.17321256,0.00027396,2]
[313393897,1707277841472,-598.28095836,0.00027397,3]
[313393898,1707277841481,-500.0,0.00027397,3]
[313393899,1707277841490,-524.9,0.00027397,3]
[313393900,1707277841500,-500.0,0.00027397,3]
[313393901,1707277841509,-500.0,0.00027397,3]
[313393902,1707277841518,-500.0,0.00027397,3]
[313393903,1707277841527,-500.0,0.00027397,3]
[313393904,1707277841536,-500.0,0.00027397,3]
[313393905,1707277841545,-502.00841903,0.00027397,3]
[313393906,1707277841554,-178.21672915,0.00027397,3]
[313393907,1707277841563,-502.64083218,0.00027397,3]
[313393908,1707277841573,-616.42,0.00027397,2]
[313393909,1707277841582,-500.0,0.00027397,3]
[313393910,1707277841591,-564.24,0.00027397,3]
[313393911,1707277841601,-500.0,0.00027397,3]
[313393912,1707277841610,-500.0,0.00027397,3]
[313393913,1707277841619,-940.84,0.00027397,3]
[313393914,1707277841628,-500.0,0.00027397,3]
[313393915,1707277841638,-296.02001187,0.00027397,3]
[313393916,1707277841647,-559.53,0.00027397,3]
[313393917,1707277841656,-500.0,0.00027397,3]
[313393918,1707277841665,-500.0,0.00027397,3]
[313393919,1707277841676,-516.06972802,0.00027397,3]
[313393920,1707277841685,-404.24078657,0.00027397,3]
[313393921,1707277841694,-506.6612925,0.00027397,3]
[313393922,1707277841704,-280.660123,0.00027397,3]
[313393923,1707277841713,-512.98896463,0.00027397,3]
[313393924,1707277841723,-500.0,0.00027397,3]
[313393925,1707277841732,-512.52113801,0.00027397,3]
[313393926,1707277841741,-500.0,0.00027397,3]
[313393927,1707277841750,-507.57160955,0.00027397,3]
[313393928,1707277841759,-505.06271129,0.00027397,3]
[313393929,1707277841769,-500.0,0.00027397,3]
[313393930,1707277841778,-1069.64,0.00027397,3]
[313393931,1707277841787,-736.74,0.00027397,3]
[313393932,1707277841797,-2193.2,0.00027397,3]
[313393933,1707277841806,-918.72,0.00027397,3]
[313393934,1707277841815,-2973.04,0.00027397,3]
[313393935,1707277841824,-511.93962009,0.00027397,2]
[313393936,1707277841833,-519.48282434,0.00027397,3]
[313393937,1707277841843,-1230.02,0.00027397,3]
[313393938,1707277841852,-517.92175697,0.00027397,3]
[313393939,1707277841861,-866.47,0.00027397,3]
[313393940,1707277841871,-500.0,0.00027397,3]
[313393941,1707277841880,-531.92774573,0.00027397,3]
[313393942,1707277841889,-3049.32,0.00027397,3]
[313393943,1707277841898,-500.0,0.00027397,3]
[313393944,1707277841908,-4976.67,0.00027397,3]